[Event "*** Titled Tuesday Blitz"]
[Site "Chess.com"]
[Date "2021.04.27"]
[Round "1"]
[White "Savagelittlemole"]
[Black "LamaChampetre"]
[Result "1-0"]
[WhiteElo "2545"]
[BlackElo "2208"]
[TimeControl "180+1"]
[EndTime "10:06:41 PDT"]
[Termination "Savagelittlemole won by resignation"]

1. e4 {[%clk 0:03:00.9]} 1... c5 {[%clk 0:02:55.4]} 2. Ne2 {[%clk 0:03:00.8]}
2... g6 {[%clk 0:02:54.4]} 3. g3 {[%clk 0:03:01.2]} 3... Bg7 {[%clk 0:02:54.1]}
4. Bg2 {[%clk 0:03:01.9]} 4... Nc6 {[%clk 0:02:54.4]} 5. O-O {[%clk 0:03:02.5]}
5... Rb8 {[%clk 0:02:54.4]} 6. c3 {[%clk 0:03:03.1]} 6... e5 {[%clk 0:02:51.4]}
7. d3 {[%clk 0:03:01.7]} 7... d6 {[%clk 0:02:51.5]} 8. f4 {[%clk 0:03:01.6]}
8... Bg4 {[%clk 0:02:48.8]} 9. h3 {[%clk 0:03:00.8]} 9... Be6 {[%clk 0:02:47.9]}
10. Be3 {[%clk 0:03:00.5]} 10... h5 {[%clk 0:02:47.8]} 11. Nd2 {[%clk
0:02:58.1]} 11... b6 {[%clk 0:02:45.9]} 12. f5 {[%clk 0:02:57.1]} 12... Bd7
{[%clk 0:02:40.2]} 13. fxg6 {[%clk 0:02:50.9]} 13... fxg6 {[%clk 0:02:39.8]} 14.
Nf3 {[%clk 0:02:48.6]} 14... Nf6 {[%clk 0:02:38.6]} 15. Nh4 {[%clk 0:02:44]}
15... Kf7 {[%clk 0:02:33.7]} 16. d4 {[%clk 0:02:39.6]} 16... cxd4 {[%clk
0:02:29.1]} 17. cxd4 {[%clk 0:02:39]} 17... exd4 {[%clk 0:02:20.1]} 18. Nxd4
{[%clk 0:02:19.1]} 18... Ne5 {[%clk 0:02:14.3]} 19. Ndf3 {[%clk 0:02:06]} 19...
Nxf3+ {[%clk 0:02:08.3]} 20. Qxf3 {[%clk 0:02:06.9]} 20... Rf8 {[%clk
0:01:21.9]} 21. Bg5 {[%clk 0:02:00.3]} 21... Be8 {[%clk 0:01:17.8]} 22. Qb3+
{[%clk 0:01:49.6]} 22... Ke7 {[%clk 0:01:02.1]} 23. Rad1 {[%clk 0:01:43.1]}
23... Qc7 {[%clk 0:00:52.3]} 24. Rc1 {[%clk 0:01:23.9]} 24... Qd7 {[%clk
0:00:46.3]} 25. Rfd1 {[%clk 0:01:23.2]} 25... Rc8 {[%clk 0:00:43]} 26. e5 {[%clk
0:01:12.3]} 26... Rxc1 {[%clk 0:00:22.1]} 27. exf6+ {[%clk 0:01:11.1]} 27...
Bxf6 {[%clk 0:00:21.6]} 28. Bxf6+ {[%clk 0:01:11.2]} 28... Rxf6 {[%clk
0:00:22.1]} 29. Rxc1 {[%clk 0:01:11]} 29... Bf7 {[%clk 0:00:20.2]} 30. Qe3+
{[%clk 0:01:03.4]} 30... Re6 {[%clk 0:00:20.2]} 31. Qg5+ {[%clk 0:01:03.2]}
31... Ke8 {[%clk 0:00:19.4]} 32. Bd5 {[%clk 0:00:59.6]} 32... Re5 {[%clk
0:00:06.3]} 33. Bxf7+ {[%clk 0:00:58.7]} 33... Kxf7 {[%clk 0:00:07.2]} 34. Qxg6+
{[%clk 0:00:57.9]} 34... Ke7 {[%clk 0:00:07.3]} 35. Rf1 {[%clk 0:00:51.2]} 35...
Qb5 {[%clk 0:00:02.2]} 36. Rf7+ {[%clk 0:00:49.8]} 36... Kd8 {[%clk 0:00:02.4]}
37. Qxd6+ {[%clk 0:00:49.4]} 1-0

[Event "*** Titled Tuesday Blitz"]
[Site "Chess.com"]
[Date "2021.04.27"]
[Round "1"]
[White "Thjop"]
[Black "Matensien"]
[Result "1-0"]
[WhiteElo "2711"]
[BlackElo "2376"]
[TimeControl "180+1"]
[EndTime "10:06:43 PDT"]
[Termination "Thjop won on time"]

1. e4 {[%clk 0:03:00.9]} 1... c5 {[%clk 0:02:55.6]} 2. Nf3 {[%clk 0:03:00.6]}
2... e6 {[%clk 0:02:55.9]} 3. d3 {[%clk 0:03:00.7]} 3... Nc6 {[%clk 0:02:48.8]}
4. g3 {[%clk 0:02:54.2]} 4... Nf6 {[%clk 0:02:47.3]} 5. Bg2 {[%clk 0:02:48.7]}
5... g6 {[%clk 0:02:42.2]} 6. O-O {[%clk 0:02:48.3]} 6... Bg7 {[%clk 0:02:42.6]}
7. Re1 {[%clk 0:02:42.5]} 7... e5 {[%clk 0:02:41.2]} 8. Nc3 {[%clk 0:02:41.8]}
8... O-O {[%clk 0:02:41.1]} 9. a4 {[%clk 0:02:42.7]} 9... Rb8 {[%clk 0:02:38]}
10. Nd2 {[%clk 0:02:41.5]} 10... a6 {[%clk 0:02:16]} 11. Nc4 {[%clk 0:02:40.8]}
11... b5 {[%clk 0:02:14.2]} 12. axb5 {[%clk 0:02:41.7]} 12... axb5 {[%clk
0:02:15]} 13. Nd6 {[%clk 0:02:39.2]} 13... Qc7 {[%clk 0:02:06.2]} 14. Ncxb5
{[%clk 0:02:32.9]} 14... Qb6 {[%clk 0:02:00.7]} 15. Na3 {[%clk 0:02:21.3]} 15...
Nd4 {[%clk 0:01:53.2]} 16. Nac4 {[%clk 0:02:16.7]} 16... Qc7 {[%clk 0:01:50.1]}
17. Be3 {[%clk 0:01:59.7]} 17... Ne8 {[%clk 0:01:12.2]} 18. Nxc8 {[%clk
0:01:52.8]} 18... Rxc8 {[%clk 0:01:10.3]} 19. c3 {[%clk 0:01:51.9]} 19... Ne6
{[%clk 0:01:07.2]} 20. Qa4 {[%clk 0:01:48.3]} 20... Nd6 {[%clk 0:01:01.3]} 21.
Qa7 {[%clk 0:01:40.4]} 21... Nxc4 {[%clk 0:00:55.7]} 22. dxc4 {[%clk 0:01:37.8]}
22... Rb8 {[%clk 0:00:56.2]} 23. Qxc7 {[%clk 0:01:36.1]} 23... Nxc7 {[%clk
0:00:55.7]} 24. Bxc5 {[%clk 0:01:35.8]} 24... Rfc8 {[%clk 0:00:54.2]} 25. b4
{[%clk 0:01:31.8]} 25... Ne6 {[%clk 0:00:48.8]} 26. Bd6 {[%clk 0:01:30.3]} 26...
Rb7 {[%clk 0:00:49.3]} 27. c5 {[%clk 0:01:29.9]} 27... Nc7 {[%clk 0:00:37.9]}
28. Bf1 {[%clk 0:01:23.6]} 28... Ne8 {[%clk 0:00:31.8]} 29. Be7 {[%clk
0:01:18.6]} 29... Rbb8 {[%clk 0:00:20.2]} 30. Red1 {[%clk 0:01:16.1]} 30... Rc7
{[%clk 0:00:18.7]} 31. h4 {[%clk 0:01:11.9]} 31... h5 {[%clk 0:00:18.2]} 32. Kg2
{[%clk 0:01:11.8]} 32... Bf6 {[%clk 0:00:16.1]} 33. Bxf6 {[%clk 0:01:06.7]}
33... Nxf6 {[%clk 0:00:17]} 34. f3 {[%clk 0:01:07.2]} 34... Kf8 {[%clk
0:00:10.3]} 35. Bc4 {[%clk 0:01:06.6]} 35... Ke7 {[%clk 0:00:10.2]} 36. Kf2
{[%clk 0:01:06.8]} 36... Ne8 {[%clk 0:00:07.9]} 37. Ra6 {[%clk 0:01:05.9]} 37...
f6 {[%clk 0:00:07.4]} 38. Ke3 {[%clk 0:01:06.1]} 38... Rbb7 {[%clk 0:00:06.5]}
39. f4 {[%clk 0:01:06.1]} 39... exf4+ {[%clk 0:00:04.2]} 40. gxf4 {[%clk
0:01:07]} 40... Rb8 {[%clk 0:00:03.7]} 41. Rg1 {[%clk 0:01:06.7]} 41... d6
{[%clk 0:00:02.1]} 42. c6 {[%clk 0:01:03]} 42... Rbc8 {[%clk 0:00:01.2]} 43. b5
{[%clk 0:01:02.1]} 1-0

[Event "*** Titled Tuesday Blitz"]
[Site "Chess.com"]
[Date "2021.04.27"]
[Round "1"]
[White "kingofthenil"]
[Black "dosto07"]
[Result "1-0"]
[WhiteElo "2644"]
[BlackElo "2310"]
[TimeControl "180+1"]
[EndTime "10:06:45 PDT"]
[Termination "kingofthenil won by resignation"]

1. e4 {[%clk 0:03:00.1]} 1... e5 {[%clk 0:02:59.2]} 2. Nf3 {[%clk 0:02:54.2]}
2... Nc6 {[%clk 0:02:59]} 3. Bc4 {[%clk 0:02:53.9]} 3... Bc5 {[%clk 0:02:57.6]}
4. c3 {[%clk 0:02:50.4]} 4... d6 {[%clk 0:02:57.3]} 5. d3 {[%clk 0:02:50.5]}
5... Nf6 {[%clk 0:02:55.2]} 6. Bb3 {[%clk 0:02:50.3]} 6... a6 {[%clk 0:02:55.1]}
7. Nbd2 {[%clk 0:02:49.9]} 7... Ba7 {[%clk 0:02:55.2]} 8. h3 {[%clk 0:02:48.5]}
8... O-O {[%clk 0:02:47.8]} 9. Nf1 {[%clk 0:02:34.2]} 9... Be6 {[%clk
0:02:43.9]} 10. Bg5 {[%clk 0:02:21.4]} 10... Ne7 {[%clk 0:02:18.2]} 11. Ng3
{[%clk 0:02:06.7]} 11... Kh8 {[%clk 0:02:11.3]} 12. Bxf6 {[%clk 0:01:36.3]}
12... gxf6 {[%clk 0:02:10.6]} 13. Nh4 {[%clk 0:01:37.2]} 13... Ng6 {[%clk
0:01:56.6]} 14. Nhf5 {[%clk 0:01:36.9]} 14... Nf4 {[%clk 0:01:48.4]} 15. Qf3
{[%clk 0:01:36.7]} 15... d5 {[%clk 0:01:37.7]} 16. O-O-O {[%clk 0:01:36.2]}
16... c5 {[%clk 0:01:31.8]} 17. exd5 {[%clk 0:01:31.5]} 17... Bxd5 {[%clk
0:01:30.7]} 18. Bxd5 {[%clk 0:01:30.9]} 18... Qxd5 {[%clk 0:01:29.6]} 19. Qxd5
{[%clk 0:01:31.1]} 19... Nxd5 {[%clk 0:01:29.1]} 20. Ne4 {[%clk 0:01:32]} 20...
Rad8 {[%clk 0:01:18.4]} 21. g3 {[%clk 0:01:30.6]} 21... Rfe8 {[%clk 0:01:00]}
22. h4 {[%clk 0:01:30.2]} 22... Ne7 {[%clk 0:00:58.2]} 23. Nfd6 {[%clk 0:01:28]}
23... Rf8 {[%clk 0:00:50]} 24. Nxb7 {[%clk 0:01:27]} 24... Rd5 {[%clk
0:00:46.6]} 25. Nxf6 {[%clk 0:01:25.4]} 25... Rb8 {[%clk 0:00:31.6]} 26. Nxd5
{[%clk 0:01:14.7]} 26... Nxd5 {[%clk 0:00:30.9]} 27. Nd6 {[%clk 0:01:14.7]}
27... f6 {[%clk 0:00:27.7]} 28. Kc2 {[%clk 0:01:03.5]} 28... Kg8 {[%clk
0:00:27.5]} 29. h5 {[%clk 0:01:03]} 29... Kf8 {[%clk 0:00:26]} 30. Rh4 {[%clk
0:00:52.7]} 30... Ke7 {[%clk 0:00:26]} 31. Nf5+ {[%clk 0:00:51.7]} 31... Ke6
{[%clk 0:00:26]} 32. Ng7+ {[%clk 0:00:51.4]} 32... Kf7 {[%clk 0:00:24.6]} 33. h6
{[%clk 0:00:52.3]} 33... Ne7 {[%clk 0:00:21.2]} 34. Ra4 {[%clk 0:00:51.8]} 34...
Rb6 {[%clk 0:00:19.9]} 35. f4 {[%clk 0:00:49.1]} 35... exf4 {[%clk 0:00:16.6]}
36. gxf4 {[%clk 0:00:50]} 36... Ng6 {[%clk 0:00:16.7]} 37. d4 {[%clk 0:00:44.3]}
37... Nxf4 {[%clk 0:00:13.7]} 38. dxc5 {[%clk 0:00:44.3]} 38... Rb5 {[%clk
0:00:04.5]} 1-0

[Event "*** Titled Tuesday Blitz"]
[Site "Chess.com"]
[Date "2021.04.27"]
[Round "1"]
[White "LenkaPtacnikova"]
[Black "guillembaches"]
[Result "1-0"]
[WhiteElo "2177"]
[BlackElo "2505"]
[TimeControl "180+1"]
[EndTime "10:06:45 PDT"]
[Termination "LenkaPtacnikova won on time"]

1. c4 {[%clk 0:02:59]} 1... e5 {[%clk 0:02:59.4]} 2. g3 {[%clk 0:02:58.2]} 2...
Nf6 {[%clk 0:02:59.3]} 3. Bg2 {[%clk 0:02:58.7]} 3... d5 {[%clk 0:02:59.9]} 4.
cxd5 {[%clk 0:02:58.8]} 4... Nxd5 {[%clk 0:03:00.2]} 5. Nf3 {[%clk 0:02:59.2]}
5... Nc6 {[%clk 0:02:59.9]} 6. O-O {[%clk 0:02:59.8]} 6... Nb6 {[%clk
0:03:00.1]} 7. d3 {[%clk 0:02:53.3]} 7... Be7 {[%clk 0:03:00.4]} 8. b3 {[%clk
0:02:52.9]} 8... O-O {[%clk 0:03:00.4]} 9. Bb2 {[%clk 0:02:52.8]} 9... f6 {[%clk
0:03:00.4]} 10. e4 {[%clk 0:02:37.9]} 10... Bg4 {[%clk 0:02:53.7]} 11. h3 {[%clk
0:02:37.6]} 11... Bh5 {[%clk 0:02:53.8]} 12. g4 {[%clk 0:02:36.7]} 12... Bf7
{[%clk 0:02:51.6]} 13. d4 {[%clk 0:02:34.2]} 13... exd4 {[%clk 0:02:49.4]} 14.
Nxd4 {[%clk 0:02:34.2]} 14... Nxd4 {[%clk 0:02:48.6]} 15. Bxd4 {[%clk
0:02:32.7]} 15... a5 {[%clk 0:02:38.9]} 16. Bc3 {[%clk 0:02:30.4]} 16... a4
{[%clk 0:02:30.7]} 17. Qc2 {[%clk 0:02:25.3]} 17... axb3 {[%clk 0:02:18.4]} 18.
axb3 {[%clk 0:02:24.7]} 18... Rxa1 {[%clk 0:02:18.9]} 19. Bxa1 {[%clk
0:02:24.1]} 19... Bd6 {[%clk 0:02:19.2]} 20. e5 {[%clk 0:02:17.4]} 20... Bxe5
{[%clk 0:02:13.5]} 21. Bxe5 {[%clk 0:02:16.3]} 21... fxe5 {[%clk 0:02:14.4]} 22.
Bxb7 {[%clk 0:02:14.4]} 22... Bd5 {[%clk 0:02:05.7]} 23. Rd1 {[%clk 0:02:03.4]}
23... Kh8 {[%clk 0:01:00]} 24. Nc3 {[%clk 0:01:41.7]} 24... Bxb7 {[%clk
0:00:44.6]} 25. Rxd8 {[%clk 0:01:39.9]} 25... Rxd8 {[%clk 0:00:45.5]} 26. Qf5
{[%clk 0:01:31.5]} 26... h6 {[%clk 0:00:36.6]} 27. Qxe5 {[%clk 0:01:28.7]} 27...
Nd5 {[%clk 0:00:27.3]} 28. Nxd5 {[%clk 0:01:07.7]} 28... Bxd5 {[%clk 0:00:27.1]}
29. Qxc7 {[%clk 0:01:05.9]} 29... Re8 {[%clk 0:00:27.2]} 30. b4 {[%clk
0:01:00.2]} 30... g5 {[%clk 0:00:22.4]} 31. Kh2 {[%clk 0:00:51]} 31... Re1
{[%clk 0:00:17.6]} 32. Qd8+ {[%clk 0:00:49.8]} 32... Bg8 {[%clk 0:00:17.3]} 33.
Qd4+ {[%clk 0:00:41.8]} 33... Kh7 {[%clk 0:00:15.8]} 34. Qd3+ {[%clk 0:00:41.7]}
34... Kh8 {[%clk 0:00:15.4]} 35. Qc3+ {[%clk 0:00:41.8]} 1-0

[Event "*** Titled Tuesday Blitz"]
[Site "Chess.com"]
[Date "2021.04.27"]
[Round "1"]
[White "FeketeBarika"]
[Black "elextranjero00"]
[Result "0-1"]
[WhiteElo "2236"]
[BlackElo "2565"]
[TimeControl "180+1"]
[EndTime "10:06:46 PDT"]
[Termination "elextranjero00 won by checkmate"]

1. Nf3 {[%clk 0:02:56.5]} 1... d5 {[%clk 0:02:57.8]} 2. g3 {[%clk 0:02:57.4]}
2... Nd7 {[%clk 0:02:57.4]} 3. Bg2 {[%clk 0:02:53.5]} 3... e5 {[%clk 0:02:56.8]}
4. O-O {[%clk 0:02:54.4]} 4... Ngf6 {[%clk 0:02:56.1]} 5. d3 {[%clk 0:02:53.9]}
5... Bd6 {[%clk 0:02:55]} 6. Qe1 {[%clk 0:02:39.3]} 6... O-O {[%clk 0:02:53]} 7.
e4 {[%clk 0:02:34.6]} 7... c6 {[%clk 0:02:43.7]} 8. c3 {[%clk 0:02:15.4]} 8...
Re8 {[%clk 0:02:33.1]} 9. Bg5 {[%clk 0:02:10.7]} 9... h6 {[%clk 0:02:30.4]} 10.
Be3 {[%clk 0:02:04.5]} 10... dxe4 {[%clk 0:02:25.4]} 11. dxe4 {[%clk 0:02:02.4]}
11... Nc5 {[%clk 0:02:09.4]} 12. Bxc5 {[%clk 0:01:55.2]} 12... Bxc5 {[%clk
0:02:10.3]} 13. Nbd2 {[%clk 0:01:55.6]} 13... a5 {[%clk 0:01:54]} 14. Rd1 {[%clk
0:01:52]} 14... Qc7 {[%clk 0:01:53.8]} 15. Nc4 {[%clk 0:01:44.4]} 15... Bg4
{[%clk 0:01:36.6]} 16. h3 {[%clk 0:01:40.9]} 16... Be6 {[%clk 0:01:29.1]} 17.
Nfd2 {[%clk 0:01:34.2]} 17... b5 {[%clk 0:01:26.9]} 18. Ne3 {[%clk 0:01:29.4]}
18... Bxa2 {[%clk 0:01:21]} 19. c4 {[%clk 0:01:17.4]} 19... Bxe3 {[%clk
0:01:12.3]} 20. Qxe3 {[%clk 0:01:16.6]} 20... Bxc4 {[%clk 0:01:07.5]} 21. Nxc4
{[%clk 0:01:16.7]} 21... bxc4 {[%clk 0:01:08.4]} 22. Rc1 {[%clk 0:01:17.2]}
22... Reb8 {[%clk 0:01:04.3]} 23. Rxc4 {[%clk 0:01:15.3]} 23... Rxb2 {[%clk
0:01:02]} 24. Rfc1 {[%clk 0:01:15.2]} 24... Qb6 {[%clk 0:00:54.4]} 25. Qf3
{[%clk 0:01:02.5]} 25... Rb1 {[%clk 0:00:34.1]} 26. Kh2 {[%clk 0:00:57.8]} 26...
Rxc1 {[%clk 0:00:33.7]} 27. Rxc1 {[%clk 0:00:58.7]} 27... a4 {[%clk 0:00:33.2]}
28. Qf5 {[%clk 0:00:47]} 28... a3 {[%clk 0:00:28.1]} 29. Qxe5 {[%clk 0:00:34.6]}
29... Qxf2 {[%clk 0:00:26]} 30. Rxc6 {[%clk 0:00:31.1]} 30... a2 {[%clk
0:00:22.6]} 31. Qd6 {[%clk 0:00:29.3]} 31... a1=Q {[%clk 0:00:15.3]} 32. h4
{[%clk 0:00:26.9]} 32... Qag1+ {[%clk 0:00:14.4]} 33. Kh3 {[%clk 0:00:25.9]}
33... Qgxg2# {[%clk 0:00:15.3]} 0-1

[Event "*** Titled Tuesday Blitz"]
[Site "Chess.com"]
[Date "2021.04.27"]
[Round "1"]
[White "Region_07"]
[Black "TimurGareyev"]
[Result "0-1"]
[WhiteElo "2365"]
[BlackElo "2711"]
[TimeControl "180+1"]
[EndTime "10:06:47 PDT"]
[Termination "TimurGareyev won on time"]

1. d4 {[%clk 0:02:55.1]} 1... Nf6 {[%clk 0:02:57.8]} 2. Bg5 {[%clk 0:02:54]}
2... c5 {[%clk 0:02:55.9]} 3. dxc5 {[%clk 0:02:53.4]} 3... e6 {[%clk 0:02:36.3]}
4. Nd2 {[%clk 0:02:51.2]} 4... Bxc5 {[%clk 0:02:33.3]} 5. e3 {[%clk 0:02:48.5]}
5... d5 {[%clk 0:02:29.9]} 6. Ngf3 {[%clk 0:02:47.4]} 6... h6 {[%clk 0:02:26.8]}
7. Bh4 {[%clk 0:02:46.6]} 7... Nc6 {[%clk 0:02:24.6]} 8. Bd3 {[%clk 0:02:44.7]}
8... O-O {[%clk 0:02:18.7]} 9. a3 {[%clk 0:02:42.4]} 9... e5 {[%clk 0:02:17.1]}
10. e4 {[%clk 0:02:41.3]} 10... Be7 {[%clk 0:02:17.2]} 11. Bxf6 {[%clk
0:02:21.1]} 11... Bxf6 {[%clk 0:02:15.5]} 12. O-O {[%clk 0:02:17.6]} 12... d4
{[%clk 0:02:12.2]} 13. Re1 {[%clk 0:02:15.8]} 13... g6 {[%clk 0:02:10]} 14. Nf1
{[%clk 0:02:12]} 14... Be6 {[%clk 0:02:07]} 15. Ng3 {[%clk 0:02:10.4]} 15... Rc8
{[%clk 0:02:05.6]} 16. h3 {[%clk 0:02:09.4]} 16... h5 {[%clk 0:02:03.6]} 17. Qe2
{[%clk 0:01:58.6]} 17... Na5 {[%clk 0:02:00.2]} 18. Nd2 {[%clk 0:01:55.5]} 18...
h4 {[%clk 0:01:53.5]} 19. Ngf1 {[%clk 0:01:51.3]} 19... Bg5 {[%clk 0:01:50.5]}
20. Nf3 {[%clk 0:01:44.4]} 20... Bf4 {[%clk 0:01:46]} 21. N1d2 {[%clk
0:01:31.6]} 21... Qf6 {[%clk 0:01:41.2]} 22. b4 {[%clk 0:01:20.5]} 22... Nc6
{[%clk 0:01:40.2]} 23. Nb3 {[%clk 0:01:15]} 23... b6 {[%clk 0:01:37.2]} 24. Rab1
{[%clk 0:00:53.6]} 24... Kg7 {[%clk 0:01:35.7]} 25. Nh2 {[%clk 0:00:36.7]} 25...
Rc7 {[%clk 0:01:19.5]} 26. Ng4 {[%clk 0:00:36.2]} 26... Qg5 {[%clk 0:01:18.5]}
27. b5 {[%clk 0:00:27.9]} 27... Ne7 {[%clk 0:01:14.1]} 28. Qf3 {[%clk
0:00:22.2]} 28... Rfc8 {[%clk 0:01:11.5]} 29. g3 {[%clk 0:00:18.8]} 29... hxg3
{[%clk 0:01:10.5]} 30. fxg3 {[%clk 0:00:19.2]} 30... Bxg4 {[%clk 0:01:08.5]} 31.
hxg4 {[%clk 0:00:17.7]} 31... Be3+ {[%clk 0:01:07.9]} 32. Kg2 {[%clk 0:00:18.6]}
32... Rxc2+ {[%clk 0:01:04.9]} 33. Bxc2 {[%clk 0:00:17.6]} 33... Rxc2+ {[%clk
0:01:05.8]} 34. Re2 {[%clk 0:00:17]} 34... d3 {[%clk 0:01:06.2]} 35. Rxc2 {[%clk
0:00:12.9]} 35... dxc2 {[%clk 0:01:07.1]} 36. Rf1 {[%clk 0:00:12.2]} 36... f6
{[%clk 0:01:07.2]} 37. Qe2 {[%clk 0:00:06.5]} 37... c1=Q {[%clk 0:01:04.2]} 38.
Nxc1 {[%clk 0:00:06.4]} 38... Bxc1 {[%clk 0:01:03.8]} 39. Qc4 {[%clk 0:00:06.2]}
39... Be3 {[%clk 0:01:02.4]} 40. Qc7 {[%clk 0:00:05.6]} 40... Bc5 {[%clk
0:01:02.3]} 41. Rh1 {[%clk 0:00:01.1]} 41... Qd2+ {[%clk 0:01:00.3]} 0-1

[Event "*** Titled Tuesday Blitz"]
[Site "Chess.com"]
[Date "2021.04.27"]
[Round "1"]
[White "nrvisakh"]
[Black "ExtremeLearner"]
[Result "1-0"]
[WhiteElo "2816"]
[BlackElo "2424"]
[TimeControl "180+1"]
[EndTime "10:06:49 PDT"]
[Termination "nrvisakh won by checkmate"]

1. d4 {[%clk 0:02:53.9]} 1... Nf6 {[%clk 0:02:59.6]} 2. Bf4 {[%clk 0:02:53.8]}
2... d5 {[%clk 0:02:57.9]} 3. e3 {[%clk 0:02:53.8]} 3... c5 {[%clk 0:02:56.8]}
4. c3 {[%clk 0:02:53.5]} 4... Nc6 {[%clk 0:02:55.8]} 5. Nd2 {[%clk 0:02:52.9]}
5... e6 {[%clk 0:02:40.6]} 6. Ngf3 {[%clk 0:02:52.8]} 6... Be7 {[%clk
0:02:37.6]} 7. Bd3 {[%clk 0:02:52.3]} 7... Nh5 {[%clk 0:02:36.4]} 8. Be5 {[%clk
0:02:48.7]} 8... f6 {[%clk 0:02:29.2]} 9. Bg3 {[%clk 0:02:46.8]} 9... g6 {[%clk
0:02:23.6]} 10. O-O {[%clk 0:02:44.6]} 10... Nxg3 {[%clk 0:02:23.1]} 11. hxg3
{[%clk 0:02:42.2]} 11... O-O {[%clk 0:02:22.3]} 12. Qc2 {[%clk 0:02:40.7]} 12...
Kg7 {[%clk 0:02:20.7]} 13. dxc5 {[%clk 0:02:39.2]} 13... Bxc5 {[%clk 0:02:17.5]}
14. e4 {[%clk 0:02:39.7]} 14... d4 {[%clk 0:02:12.4]} 15. Nb3 {[%clk 0:02:36.8]}
15... Bb6 {[%clk 0:02:00]} 16. cxd4 {[%clk 0:02:20.5]} 16... Nxd4 {[%clk
0:01:59.8]} 17. Nfxd4 {[%clk 0:02:20.4]} 17... Bxd4 {[%clk 0:01:58.6]} 18. Nxd4
{[%clk 0:02:21.3]} 18... Qxd4 {[%clk 0:01:58.5]} 19. Rfd1 {[%clk 0:02:22.2]}
19... Qb6 {[%clk 0:01:57]} 20. Rac1 {[%clk 0:02:21.6]} 20... Rf7 {[%clk
0:01:53.2]} 21. e5 {[%clk 0:02:10.7]} 21... fxe5 {[%clk 0:01:30]} 22. Qe2 {[%clk
0:02:08.7]} 22... Bd7 {[%clk 0:01:20.9]} 23. Qxe5+ {[%clk 0:02:06.1]} 23... Kg8
{[%clk 0:01:19.7]} 24. Rd2 {[%clk 0:01:58.3]} 24... Raf8 {[%clk 0:01:18.1]} 25.
Rf1 {[%clk 0:01:57.9]} 25... a6 {[%clk 0:01:06.9]} 26. b3 {[%clk 0:01:56.6]}
26... Bb5 {[%clk 0:01:06.2]} 27. Bxb5 {[%clk 0:01:56.2]} 27... axb5 {[%clk
0:01:03.9]} 28. Re2 {[%clk 0:01:41.7]} 28... Rf6 {[%clk 0:01:00.6]} 29. g4
{[%clk 0:01:39.6]} 29... R8f7 {[%clk 0:00:43.1]} 30. g5 {[%clk 0:01:27]} 30...
Rf5 {[%clk 0:00:42.8]} 31. Qxe6 {[%clk 0:01:26.9]} 31... Qxe6 {[%clk 0:00:36.9]}
32. Rxe6 {[%clk 0:01:27.8]} 32... Rxg5 {[%clk 0:00:37.5]} 33. Rb6 {[%clk
0:01:27.9]} 33... h5 {[%clk 0:00:32.3]} 34. Re1 {[%clk 0:01:25.3]} 34... h4
{[%clk 0:00:27.6]} 35. Re3 {[%clk 0:01:25]} 35... Kg7 {[%clk 0:00:21.2]} 36. f3
{[%clk 0:01:20.3]} 36... h3 {[%clk 0:00:20.2]} 37. g4 {[%clk 0:01:17]} 37... Rc5
{[%clk 0:00:16.9]} 38. Kh2 {[%clk 0:01:13.3]} 38... Kh6 {[%clk 0:00:08.6]} 39.
Kxh3 {[%clk 0:01:11.3]} 39... Kg5 {[%clk 0:00:08.4]} 40. Kg3 {[%clk 0:01:10.3]}
40... Rc2 {[%clk 0:00:06]} 41. Ree6 {[%clk 0:01:04.3]} 41... Rg7 {[%clk
0:00:04]} 42. Rxb5+ {[%clk 0:01:00.2]} 42... Kh6 {[%clk 0:00:04.4]} 43. Rh5#
{[%clk 0:01:00.3]} 1-0

[Event "*** Titled Tuesday Blitz"]
[Site "Chess.com"]
[Date "2021.04.27"]
[Round "1"]
[White "MARVELandDCforLIFE"]
[Black "Omk124"]
[Result "0-1"]
[WhiteElo "2226"]
[BlackElo "2558"]
[TimeControl "180+1"]
[EndTime "10:06:49 PDT"]
[Termination "Omk124 won by checkmate"]

1. e4 {[%clk 0:03:00.3]} 1... g6 {[%clk 0:02:59.5]} 2. d4 {[%clk 0:02:59.3]}
2... Bg7 {[%clk 0:02:59.4]} 3. Nc3 {[%clk 0:02:58.5]} 3... c6 {[%clk 0:02:58.8]}
4. g3 {[%clk 0:02:57.9]} 4... d6 {[%clk 0:02:56]} 5. Bg2 {[%clk 0:02:57.6]} 5...
Nf6 {[%clk 0:02:54.5]} 6. Nge2 {[%clk 0:02:57.8]} 6... O-O {[%clk 0:02:54.4]} 7.
O-O {[%clk 0:02:57.8]} 7... Nbd7 {[%clk 0:02:51.9]} 8. h3 {[%clk 0:02:57.4]}
8... e5 {[%clk 0:02:51.8]} 9. Be3 {[%clk 0:02:55.4]} 9... Re8 {[%clk 0:02:50.7]}
10. Qd2 {[%clk 0:02:49]} 10... Qe7 {[%clk 0:02:47.6]} 11. f4 {[%clk 0:02:43]}
11... exf4 {[%clk 0:02:44.4]} 12. Nxf4 {[%clk 0:02:35.7]} 12... Nb6 {[%clk
0:02:41.8]} 13. b3 {[%clk 0:02:25.3]} 13... Be6 {[%clk 0:02:36.7]} 14. Rae1
{[%clk 0:02:14.4]} 14... Rad8 {[%clk 0:02:35.5]} 15. a4 {[%clk 0:01:58.7]} 15...
d5 {[%clk 0:02:26.3]} 16. e5 {[%clk 0:01:55.4]} 16... Ne4 {[%clk 0:02:26.2]} 17.
Nxe4 {[%clk 0:01:51.6]} 17... dxe4 {[%clk 0:02:27.1]} 18. Qf2 {[%clk 0:01:35.8]}
18... f5 {[%clk 0:01:53.1]} 19. exf6 {[%clk 0:01:25.4]} 19... Qxf6 {[%clk
0:01:53.3]} 20. Bxe4 {[%clk 0:01:08.5]} 20... Bxb3 {[%clk 0:01:52.6]} 21. Bxg6
{[%clk 0:00:59.8]} 21... hxg6 {[%clk 0:01:16.2]} 22. cxb3 {[%clk 0:00:58.7]}
22... Qf7 {[%clk 0:01:10.1]} 23. a5 {[%clk 0:00:39.9]} 23... Nd5 {[%clk
0:01:08.1]} 24. Nxd5 {[%clk 0:00:39]} 24... Qxd5 {[%clk 0:01:09]} 25. Kh2 {[%clk
0:00:28.1]} 25... Qxb3 {[%clk 0:01:04.5]} 26. Bg5 {[%clk 0:00:25.6]} 26... Rxe1
{[%clk 0:00:40.5]} 27. Rxe1 {[%clk 0:00:26.5]} 27... Rxd4 {[%clk 0:00:32.6]} 28.
Bf6 {[%clk 0:00:06.9]} 28... Bxf6 {[%clk 0:00:20.1]} 29. Qxf6 {[%clk 0:00:07.1]}
29... Rd2+ {[%clk 0:00:20.4]} 30. Kh1 {[%clk 0:00:07.5]} 30... Qd5+ {[%clk
0:00:20.5]} 31. Kg1 {[%clk 0:00:07.3]} 31... Qg2# {[%clk 0:00:20.6]} 0-1